bitfinex-derivatives/quotes_ETHF0:USTF0_20250828
["timestamp","ask_amount","ask_price","bid_price","bid_amount"]
[1756410222110,0.40383,4456.8,4456.5,0.03]
[1756410222317,0.4205,4456.7,4456.6,0.243]
[1756410222913,0.6773,4456.7,4456.6,0.243]
[1756410223612,0.6773,4456.7,4456.5,0.03]
[1756410223613,0.40385,4456.6,4456.5,0.03]
[1756410223816,1.08115,4456.6,4456.5,0.03]
[1756410224013,0.66069,4456.2,4456.1,0.243]
[1756410224215,4.28899,4456.2,4456.1,0.243]
[1756410224613,4.28899,4456.2,4456.1,0.52941848]
[1756410225320,4.03219,4456.2,4456.1,0.52941848]
[1756410225909,3.6283,4456.2,4456.1,0.52941848]
[1756410226115,3.2078,4456.2,4456.1,0.63761848]
[1756410226511,10.09009,4459.4,4456.1,0.63761848]
[1756410226512,3.2078,4456.8,4456.6,0.51205]
[1756410226712,3.2078,4457.3,4456.9,0.1082]
[1756410226916,3.2078,4457.3,4457.0,0.28641848]
[1756410227117,1.38238448,4457.2,4457.1,0.52941848]
[1756410228113,0.97858448,4457.2,4457.1,0.52941848]
[1756410229023,0.4205,4457.2,4457.1,0.52941848]
[1756410229324,3.2078,4457.3,4457.2,0.512]
[1756410229515,3.2078,4457.3,4457.2,0.79841848]
[1756410229718,3.2078,4457.3,4457.2,0.39461848]
[1756410229915,3.2078,4457.3,4457.2,0.28695525]
[1756410230217,3.6283,4457.3,4457.2,0.28695525]
[1756410230517,3.2078,4457.3,4457.2,0.28696486]
[1756410230820,3.2078,4457.3,4457.2,0.39516486]
[1756410231921,3.2078,4457.8,4457.7,0.51195]
[1756410232119,3.6283,4457.8,4457.7,0.93271486]
[1756410232318,3.6283,4457.8,4457.7,0.52896486]
[1756410232511,7.6283,4457.8,4457.7,0.52896486]
[1756410232716,7.6283,4457.8,4457.0,0.242]
[1756410232717,0.4205,4457.7,4457.0,0.242]
[1756410232916,3.6283,4457.1,4457.0,0.242]
[1756410235318,3.8851,4457.1,4457.0,0.242]
[1756410236620,4.28891,4457.1,4457.0,0.242]
[1756410238720,3.8851,4457.1,4457.0,0.242]
[1756410242125,4.28891,4457.1,4457.0,0.242]
[1756410243631,0.2568,4456.3,4456.2,2.00751668]
[1756410243826,3.4646,4456.3,4456.2,0.2681]
[1756410244026,3.4646,4456.3,4456.2,0.6633]
[1756410244234,0.6773,4456.2,4455.9,0.3952]
[1756410244433,0.6773,4456.2,4456.1,1.0672]
[1756410244631,0.6773,4456.2,4456.1,0.94643024]
[1756410244932,0.6773,4456.2,4456.1,0.55123024]
[1756410245131,0.6773,4456.2,4456.1,0.55123902]
[1756410245333,0.6773,4456.2,4456.1,0.28313902]
[1756410246435,0.6773,4456.2,4456.1,0.52513902]
[1756410247530,0.6773,4456.2,4456.1,1.17543902]
[1756410247836,0.2955,4457.0,4456.9,0.40382]
[1756410248030,0.7082,4457.0,4456.9,1.61335902]
[1756410249036,0.7082,4457.0,4456.9,0.52413902]
[1756410249737,0.7082,4457.0,4456.9,0.28313902]
[1756410250531,0.4127,4456.9,4456.7,0.64484]
[1756410250732,3.916,4456.8,4456.7,0.64484]
[1756410250931,3.916,4456.8,4456.7,0.92537864]
[1756410251334,3.916,4456.8,4456.7,1.61077864]
[1756410251637,3.916,4456.8,4456.7,0.92537656]
[1756410252136,3.916,4456.8,4456.7,0.28053656]
[1756410252337,3.916,4456.8,4456.7,0.52153656]
[1756410253140,4.31983,4456.8,4456.7,0.52153656]
[1756410254138,4.31983,4456.8,4456.7,0.28053656]
[1756410254340,0.2955,4456.2,4455.8,34.33035306]
[1756410254536,1.00952,4457.2,4455.8,34.33035306]
[1756410254537,0.7082,4456.0,4455.9,0.64491]
[1756410255137,0.7082,4456.0,4455.9,0.40391]
[1756410255332,0.7082,4456.0,4455.9,0.64491]
[1756410256445,0.7082,4456.0,4455.9,0.241]
[1756410256946,0.7082,4456.0,4455.9,0.9848]
[1756410257342,0.7082,4456.0,4455.9,1.38871]
[1756410257540,0.7082,4456.0,4455.9,0.9848]
[1756410257747,0.7082,4456.0,4455.9,1.38871]
[1756410257942,0.7082,4456.0,4455.9,1.14771]
[1756410258143,0.7082,4456.0,4455.9,0.94711]
[1756410258344,0.7082,4456.0,4455.9,1.38771]
[1756410258846,0.7082,4456.0,4455.9,0.94711]
[1756410259441,0.7082,4456.0,4455.9,1.38771]
[1756410260444,0.7082,4456.0,4455.9,0.24]
[1756410260744,0.7082,4456.0,4455.9,0.64392]
[1756410261338,0.7082,4456.0,4455.9,0.24]
[1756410262244,0.7082,4456.0,4455.8,32.316]
[1756410262441,0.40393,4455.8,4455.5,2.01435306]
[1756410262646,0.40393,4455.8,4455.1,2.41834306]
[1756410262647,0.2955,4455.6,4455.1,2.41834306]
[1756410262846,0.2955,4455.3,4455.0,5.22215306]
[1756410263045,0.4127,4455.0,4454.8,2.85897306]
[1756410263254,0.7082,4454.9,4454.8,1.14782]
[1756410263549,3.2078,4455.3,4454.5,2.01435306]
[1756410263550,0.7082,4454.6,4454.5,2.01435306]
[1756410263750,0.7082,4454.6,4454.5,0.24]
[1756410264651,0.7082,4454.6,4454.4,0.40405]
[1756410264652,0.4127,4454.5,4454.3,32.318]
[1756410264847,0.7082,4454.4,4454.3,32.318]
[1756410265355,0.7082,4454.4,4454.3,32.9986]
[1756410265841,0.2955,4454.4,4454.3,32.9986]
[1756410266044,3.6205,4454.8,4454.3,32.9986]
[1756410266247,0.4127,4455.2,4454.7,0.7438]
[1756410266442,3.2078,4454.8,4454.3,32.318]
[1756410266649,1.00965,4456.6,4456.0,42.99521]
[1756410266955,3.6117,4456.1,4456.0,42.99521]
[1756410267150,3.8517,4456.1,4456.0,42.99521]
[1756410267351,4.07611,4456.1,4456.0,42.99521]
[1756410267551,3.8517,4456.1,4456.0,42.99521]
[1756410267951,7.6117,4456.1,4456.0,42.99521]
[1756410268258,3.2078,4456.1,4456.0,43.67481]
[1756410268949,3.2078,4456.6,4456.1,0.3032]
[1756410269150,0.4039,4456.2,4456.0,43.23421]
[1756410269351,0.4039,4456.2,4456.0,42.99521]
[1756410270451,0.4039,4456.2,4456.1,0.4406]
[1756410270653,0.4039,4456.2,4456.1,0.9828]
[1756410271554,0.4039,4456.2,4456.1,0.4406]
[1756410271757,0.4039,4456.2,4456.0,43.43581]
[1756410272060,0.4039,4456.2,4456.1,0.6796]
[1756410272760,0.4039,4456.2,4456.1,0.9828]
[1756410272961,0.4039,4456.2,4456.1,0.239]
[1756410273156,0.4039,4456.2,4456.1,0.7438]
[1756410273457,0.4039,4456.2,4456.1,0.9828]
[1756410273854,0.40388,4456.3,4456.2,0.4406]
[1756410274052,0.40388,4456.3,4456.2,0.7438]
[1756410274256,0.40388,4456.3,4456.2,0.4406]
[1756410274452,0.40388,4456.3,4456.1,0.239]
[1756410275248,0.40388,4456.3,4456.2,0.4406]
[1756410275452,0.40388,4456.3,4456.2,0.7438]
[1756410276054,0.40388,4456.3,4456.0,42.99521]
[1756410276055,0.4039,4456.1,4456.0,42.99521]
[1756410276362,3.6616,4456.1,4456.0,43.44971]
[1756410276660,3.6616,4456.1,4456.0,43.23421]
[1756410277257,3.2577,4456.1,4456.0,43.44971]
[1756410277460,3.2078,4456.6,4456.0,43.68871]
[1756410277664,3.2078,4456.6,4456.5,0.724]
[1756410277958,3.2078,4456.6,4456.5,0.963]
[1756410279153,3.3376,4456.6,4456.5,0.963]
[1756410279354,0.1298,4456.1,4456.0,43.44971]
[1756410279551,0.1298,4456.1,4456.0,43.23421]
[1756410279952,3.3376,4456.1,4456.0,42.99521]
[1756410280663,3.5766,4456.1,4456.0,42.99521]
[1756410281860,3.3376,4456.1,4456.0,43.44971]
[1756410282263,3.3376,4456.1,4456.0,42.99521]
[1756410282659,7.3376,4456.1,4456.0,42.99521]
[1756410283758,7.5756,4456.1,4456.0,42.99521]
[1756410285363,3.5756,4456.1,4456.0,43.44971]
[1756410285958,3.4458,4456.1,4456.0,43.85362]
[1756410286264,3.2078,4457.1,4457.0,0.85832]
[1756410286463,3.2078,4457.1,4457.0,1.36582]
[1756410286763,3.2078,4457.1,4457.0,4.962]
[1756410286964,0.86913,4458.1,4457.5,0.40378]
[1756410287262,3.2078,4458.2,4458.1,0.724]
[1756410287463,3.2078,4458.2,4458.1,0.962]
[1756410288065,3.2078,4458.2,4457.1,1.00953]
[1756410288066,0.40375,4457.8,4457.7,0.724]
[1756410288369,3.61152,4458.2,4457.7,0.5075]
[1756410288666,3.2078,4458.2,4458.1,0.724]
[1756410288865,3.2078,4458.2,4458.1,0.963]
[1756410289162,3.2078,4458.2,4458.1,0.724]
[1756410289360,3.2078,4458.2,4456.6,3.02398306]
[1756410289361,3.6732,4458.2,4457.5,0.239]
[1756410289558,0.40373,4458.1,4458.0,0.2695]
[1756410289762,0.40373,4458.1,4458.0,0.724]
[1756410289957,0.40377,4457.6,4457.5,0.2695]
[1756410290164,3.2078,4457.7,4457.5,0.5085]
[1756410290661,3.2078,4457.7,4457.6,0.4545]
[1756410290969,3.6732,4457.7,4456.9,0.4545]
[1756410291172,0.4038,4457.3,4457.2,0.724]
[1756410291669,0.4038,4457.3,4457.2,0.962]
[1756410291868,0.4654,4457.6,4457.2,0.962]
[1756410291869,3.2078,4457.7,4457.2,0.5075]
[1756410292070,0.40377,4457.6,4457.5,0.2695]
[1756410292265,0.40377,4457.6,4457.5,0.724]
[1756410292770,1.13927,4457.6,4457.5,0.724]
[1756410293762,3.2078,4457.7,4457.5,0.67327]
[1756410293961,0.4654,4458.2,4458.1,0.724]
[1756410293962,3.2078,4458.2,4458.1,0.724]
[1756410294162,3.2078,4458.2,4458.1,0.962]
[1756410296576,3.2078,4458.2,4457.3,3.2078]
[1756410296577,0.7355,4457.8,4457.7,0.4545]
[1756410296875,0.7355,4457.8,4457.7,0.724]
[1756410297069,3.2078,4458.2,4457.6,0.238]
[1756410297070,3.2078,4458.2,4458.1,0.724]
[1756410297278,3.2078,4459.3,4459.2,0.2695]
[1756410297571,3.2078,4459.3,4459.2,0.724]
[1756410301270,3.61138,4459.8,4459.2,0.67312]
[1756410301471,3.2078,4459.8,4459.3,0.4545]
[1756410301674,3.9433,4459.8,4459.7,0.724]
[1756410302176,3.4779,4459.8,4459.7,0.724]
[1756410302475,3.4779,4459.8,4459.7,0.962]
[1756410302476,3.2078,4459.8,4459.7,0.962]
[1756410302868,3.2078,4460.3,4460.2,0.2695]
[1756410303073,3.2078,4460.3,4460.2,0.962]
[1756410303265,3.6732,4461.0,4460.2,0.6925]
[1756410303473,0.4654,4461.4,4461.1,0.40345]
[1756410303676,0.7355,4461.4,4461.3,0.724]
[1756410303871,3.2078,4461.6,4461.3,0.2695]
[1756410304074,3.9433,4461.6,4461.5,0.724]
[1756410304669,3.9433,4461.6,4460.4,4.21659]
[1756410304670,0.2701,4461.1,4461.0,0.2695]
[1756410304872,0.2701,4460.5,4460.4,0.238]
[1756410305074,0.7355,4460.5,4460.4,0.238]
[1756410305480,0.2701,4460.3,4460.2,0.4545]
[1756410305776,0.7355,4460.3,4460.2,0.962]
[1756410305973,0.4276,4460.4,4460.2,0.238]
[1756410306175,0.7132,4460.3,4460.2,0.238]
[1756410306477,0.40357,4459.8,4459.7,0.238]
[1756410306682,0.2856,4459.6,4459.5,0.7504]
[1756410307072,0.40357,4459.9,4459.5,0.7504]
[1756410307270,0.40357,4459.9,4459.4,32.547]
[1756410307271,0.4276,4459.8,4459.7,0.3008]
[1756410307470,0.7132,4459.8,4459.7,0.7504]
[1756410307677,0.7132,4459.5,4459.4,32.9966]
[1756410307875,0.2856,4459.5,4459.4,32.9966]
[1756410308072,0.68918,4459.8,4459.7,0.3008]
[1756410308280,1.11678,4459.8,4459.7,0.7504]
[1756410308685,0.7132,4459.8,4459.7,0.7504]
[1756410308886,3.2078,4460.1,4460.0,0.70435]
[1756410309089,3.2078,4460.7,4460.6,0.4496]
[1756410309387,3.89689,4460.7,4460.6,0.7504]
[1756410309582,4.32449,4460.7,4460.6,0.3008]
[1756410309780,8.21654,4460.7,4459.5,0.4496]
[1756410310090,0.7132,4459.7,4459.3,0.4496]
[1756410310284,0.4276,4459.6,4459.4,32.9506]
[1756410310484,0.4276,4459.9,4459.8,0.7504]
[1756410310790,0.7132,4459.9,4459.8,0.7504]
[1756410310983,3.2078,4460.0,4459.8,0.70437]
[1756410311180,3.2078,4460.0,4459.9,0.9884]
[1756410311489,1.11678,4459.7,4459.6,0.238]
[1756410311691,0.7132,4459.7,4459.6,0.238]
[1756410311888,0.7132,4459.7,4459.6,0.6876]
[1756410312091,3.2078,4460.1,4459.9,0.7504]
[1756410312288,3.2078,4460.1,4460.0,0.9884]
[1756410312689,3.2078,4460.1,4460.0,4.9884]
[1756410312989,3.2078,4460.8,4460.7,0.7504]
[1756410313188,3.2078,4460.8,4460.7,0.9884]
[1756410313395,3.921,4460.8,4460.7,0.9884]
[1756410313591,3.2078,4460.8,4460.7,0.9884]
[1756410314795,3.2078,4461.3,4460.8,0.4496]
[1756410314997,3.2078,4461.3,4461.2,1.15384]
[1756410315298,3.2078,4461.3,4461.2,0.7504]
[1756410315593,3.2078,4461.3,4461.2,0.9874]
[1756410315986,3.2078,4461.3,4461.2,0.7504]
[1756410316196,3.2078,4461.8,4461.2,0.237]
[1756410316390,0.7132,4461.7,4461.6,0.4496]
[1756410316689,3.2078,4461.8,4461.7,0.85301]
[1756410316886,3.2078,4462.3,4462.1,1.15377]
[1756410317096,3.2078,4462.8,4462.7,0.70412]
[1756410317389,3.2078,4462.8,4462.7,1.39072]
[1756410318495,0.4276,4462.7,4462.1,0.4496]
[1756410318794,0.4276,4462.7,4461.3,3.2078]
[1756410318795,0.2856,4461.9,4461.8,0.85299]
[1756410319097,0.4276,4461.7,4461.3,0.238]
[1756410319295,3.6354,4461.5,4461.0,0.4496]
[1756410319593,3.6354,4461.5,4460.8,3.2078]
[1756410319594,3.6354,4461.5,4461.4,32.7466]
[1756410319990,3.2078,4461.5,4461.4,32.7466]
[1756410320791,3.2078,4461.5,4461.4,32.9846]
[1756410320991,3.6354,4461.5,4461.4,32.9846]
[1756410321191,3.2078,4461.5,4461.4,32.9846]
[1756410322194,3.6354,4461.5,4461.4,32.7466]
[1756410322396,3.6354,4461.5,4461.4,32.9846]
[1756410322593,3.6354,4461.5,4461.4,32.534]
[1756410323190,3.2078,4461.5,4461.4,32.9836]
[1756410324300,3.6354,4461.5,4461.4,32.9836]
[1756410324599,3.2078,4461.5,4461.4,32.9836]
[1756410324799,3.2078,4462.0,4461.6,0.40342]
[1756410325098,3.2078,4462.0,4461.8,0.4496]
[1756410325290,3.2078,4462.0,4461.9,0.7504]
[1756410325689,0.4034,4461.9,4461.7,0.237]
[1756410325897,0.4276,4461.5,4461.4,32.70044]
[1756410326087,3.6354,4461.5,4461.4,32.9836]
[1756410326294,3.6354,4461.5,4461.4,32.297]
[1756410326494,3.6354,4461.5,4460.9,0.4496]
[1756410326694,3.2078,4461.0,4460.8,0.4496]
[1756410326896,3.2078,4461.0,4460.9,0.237]
[1756410327096,3.4934,4461.0,4460.9,0.237]
[1756410327302,4.32449,4461.0,4460.6,0.85311]
[1756410327498,3.4934,4461.0,4459.8,35.4958]
[1756410327698,0.4035,4460.9,4460.5,0.40353]
[1756410327899,3.2078,4461.0,4459.8,36.50479]
[1756410327900,3.6354,4461.0,4460.6,0.237]
[1756410328200,3.2078,4461.0,4460.9,0.85309]
[1756410329004,3.2078,4461.0,4460.9,0.4496]
[1756410329398,3.6354,4461.0,4460.9,0.4496]
[1756410329600,3.6354,4461.0,4460.9,0.6866]
[1756410329902,3.2078,4461.0,4460.9,0.4496]
[1756410330099,3.2078,4461.0,4460.9,0.6866]
[1756410330301,3.2078,4461.0,4460.9,0.9874]
[1756410331098,0.237,4461.9,4460.9,0.9874]
[1756410331099,3.2078,4461.5,4461.4,1.15385]
[1756410331306,3.2078,4462.1,4461.4,0.237]
[1756410331497,3.2078,4462.1,4461.8,0.40341]
[1756410331708,3.2078,4462.1,4462.0,0.7504]
[1756410332204,3.2078,4462.6,4462.5,0.4496]
[1756410332405,3.2078,4462.6,4462.5,0.6866]
[1756410332806,3.6354,4462.6,4462.5,0.6866]
[1756410333401,3.6354,4462.6,4462.5,0.237]
[1756410334104,3.2078,4462.6,4462.5,0.6866]
[1756410334403,0.40332,4462.9,4462.5,0.64034]
[1756410334608,0.40332,4462.8,4462.6,0.4496]
[1756410335003,0.4276,4462.7,4461.6,3.2078]
[1756410335211,0.40346,4461.3,4461.1,3.2078]
[1756410335408,0.40346,4461.3,4461.0,0.237]
[1756410335409,4.03886,4461.3,4461.0,0.237]
[1756410335609,4.03886,4461.3,4461.1,0.237]
[1756410335809,0.4276,4461.2,4461.1,0.237]
[1756410336407,0.4276,4461.2,4461.0,0.237]
[1756410336607,0.4214,4461.2,4461.0,0.237]
[1756410336805,0.4214,4461.2,4461.0,0.6852]
[1756410337009,3.2078,4461.3,4461.0,0.237]
[1756410337306,0.40344,4461.5,4461.2,0.4482]
[1756410337511,0.40344,4461.5,4461.1,0.40347]
[1756410337901,0.82484,4461.5,4461.2,0.4482]
[1756410338108,0.7229,4461.2,4461.1,0.237]
[1756410339212,0.7229,4461.2,4461.1,0.6852]
[1756410339514,0.40346,4461.3,4461.2,0.4482]
[1756410339713,0.40346,4461.3,4461.2,0.7532]
[1756410340014,0.70497,4461.2,4461.1,0.236]
[1756410340614,1.12637,4461.2,4461.1,0.236]
[1756410340813,0.4214,4461.0,4460.8,0.4482]
[1756410341009,0.82487,4461.2,4460.9,0.541]
[1756410341216,0.7229,4461.1,4461.0,0.4482]
[1756410341512,1.12638,4461.1,4461.0,0.4482]
[1756410342304,3.2078,4461.3,4461.0,0.4482]
[1756410342305,3.2078,4461.3,4461.1,0.40347]
[1756410342608,3.2078,4461.3,4461.2,0.7532]
[1756410343011,3.9307,4461.3,4461.2,0.7532]
[1756410343311,0.70496,4461.2,4461.1,0.236]
[1756410343518,1.12636,4461.2,4461.1,0.236]
[1756410343915,3.2078,4461.3,4461.1,0.9892]
[1756410344113,3.2078,4461.3,4461.2,0.7532]
[1756410346212,3.2078,4462.0,4461.7,0.40341]
[1756410346412,3.2078,4462.0,4461.9,0.7532]
[1756410346810,0.3015,4463.1,4463.0,0.4033]
[1756410347011,3.6292,4463.2,4463.1,0.4482]
[1756410347210,0.4214,4463.2,4463.1,0.7532]
[1756410347918,3.6292,4463.7,4463.4,0.40326]
[1756410348116,0.7229,4463.6,4463.5,0.4482]
[1756410348309,0.3015,4463.6,4463.5,0.7532]
[1756410348713,0.7229,4463.6,4463.5,0.7532]
[1756410349113,0.4214,4463.5,4463.3,0.4482]
[1756410349313,0.3015,4463.5,4463.4,0.27429208]
[1756410349715,0.3015,4463.5,4460.7,2.01754]
[1756410349716,1.00831,4462.8,4461.5,0.40343]
[1756410349914,3.2078,4461.9,4461.6,0.27432626]
[1756410350219,3.6292,4462.6,4461.8,0.4482]
[1756410350421,3.2078,4462.6,4461.8,0.4482]
[1756410350611,0.4214,4461.8,4461.7,0.25817619]
[1756410350915,3.2078,4461.9,4461.8,0.40341]
[1756410351112,3.2078,4461.9,4461.8,0.99119815]
[1756410351517,3.6292,4461.9,4461.8,0.58778815]
[1756410351712,3.6292,4461.9,4461.8,0.13958815]
[1756410351913,3.2078,4461.9,4461.8,0.58778815]
[1756410352715,0.4214,4462.4,4462.2,0.40337]
[1756410352914,3.2078,4462.6,4462.4,0.85155]
[1756410353114,3.2078,4462.6,4462.5,0.89278815]
[1756410353315,3.9307,4462.6,4462.5,0.13958815]
[1756410354118,3.9307,4462.6,4462.5,0.58778815]
[1756410354318,3.9307,4462.6,4462.5,0.13958815]
[1756410354918,0.3015,4461.5,4461.0,3.17769875]
[1756410355117,0.40345,4461.4,4460.7,0.237]
[1756410355320,0.3015,4460.8,4460.4,2.01435306]
[1756410355521,0.3554,4460.7,4460.6,0.4482]
[1756410355822,0.3015,4461.0,4460.9,0.40349]
[1756410356023,0.3015,4461.0,4460.9,0.4482]
[1756410356317,0.3015,4461.0,4460.9,0.7532]
[1756410356822,0.3554,4461.4,4460.9,0.7532]
[1756410357018,3.2078,4461.0,4460.4,0.85173]
[1756410357219,0.3554,4460.6,4460.3,3.4448]
[1756410357416,0.3554,4460.6,4460.0,2.01435306]
[1756410357417,0.6569,4460.5,4460.4,0.02977753]
[1756410358520,0.3554,4460.3,4460.1,0.4482]
[1756410358716,0.3554,4460.3,4460.1,0.85176]
[1756410358921,0.3554,4460.7,4460.2,0.7532]
[1756410359219,0.40349,4460.9,4460.6,0.305]
[1756410359423,0.75889,4460.9,4460.7,0.4482]
[1756410359720,0.3554,4460.9,4460.3,0.40354]
[1756410359922,0.40352,4460.6,4460.5,0.7532]
[1756410360323,0.4035,4460.8,4460.5,0.305]
[1756410360620,3.2078,4461.8,4461.7,1.15661]
[1756410360824,3.2078,4461.8,4461.7,1.39361]
[1756410362122,3.2078,4462.3,4461.7,4.86454]
[1756410362328,3.2078,4462.3,4462.2,0.85157]
[1756410362526,3.2078,4462.3,4462.2,4.85157]
[1756410362729,3.2078,4462.3,4462.2,5.08857]
[1756410362924,3.2078,4462.3,4462.1,0.237]
[1756410363127,3.2078,4462.3,4462.1,0.64037]
[1756410363128,0.3554,4462.2,4462.1,0.64037]
[1756410363321,3.5632,4462.3,4462.1,1.08857]
[1756410363521,0.3554,4462.2,4461.7,3.2078]
[1756410363721,3.2078,4462.3,4461.6,2.01435306]
[1756410363722,3.2078,4462.3,4461.8,0.237]
[1756410363918,0.3554,4461.9,4461.8,0.237]
[1756410364123,3.5632,4462.3,4461.9,0.4034]
[1756410364324,3.2078,4462.3,4461.8,0.237]
[1756410364623,3.2078,4462.3,4462.2,0.4482]
[1756410364820,0.3554,4462.2,4462.1,0.237]
[1756410365020,0.75877,4462.2,4462.1,0.26770521]
[1756410365222,0.3554,4462.2,4462.1,0.26770521]
[1756410365424,3.2078,4462.3,4462.2,0.4482]
[1756410365818,3.2078,4462.9,4462.2,4.40336]
[1756410366023,3.2078,4462.9,4462.3,0.4482]
[1756410366228,3.2078,4462.9,4462.5,0.03070521]
[1756410366529,3.2078,4462.9,4462.6,0.4504]
[1756410366728,0.40333,4462.7,4462.5,0.03070521]
[1756410366927,0.74443,4462.7,4462.6,0.237]
[1756410367128,0.74443,4462.7,4462.6,0.26770521]
[1756410367428,3.5489,4462.9,4462.6,0.26770521]
[1756410367628,3.2078,4462.9,4462.6,0.26770521]
[1756410367829,3.2078,4462.9,4462.7,0.4504]
[1756410368126,0.3411,4462.8,4462.7,0.4504]
[1756410368332,0.74441,4462.8,4462.7,0.48110521]
[1756410368927,0.3411,4462.8,4462.7,0.48110521]
[1756410370232,0.3411,4462.8,4462.7,0.03070521]
[1756410370829,0.3411,4462.8,4462.7,0.48110521]
[1756410371329,3.2078,4462.9,4462.7,0.03070521]
[1756410371535,3.2078,4462.9,4462.8,0.4504]
[1756410371733,0.40326,4463.4,4463.0,0.40329]
[1756410372040,0.40321,4464.0,4463.5,0.40325]
[1756410372336,0.3379,4464.0,4463.7,0.88433521]
[1756410372534,0.3379,4464.0,4463.8,0.4504]
[1756410372935,0.74111,4464.0,4463.8,0.4504]
[1756410373132,0.74112,4463.8,4463.7,0.26670521]
[1756410373333,0.74112,4463.8,4463.7,0.03070521]
[1756410373533,4.74112,4463.8,4463.7,0.03070521]
[1756410373732,0.74112,4463.8,4463.7,0.03070521]
[1756410376328,0.3072,4463.4,4463.0,0.236]
[1756410376528,3.61109,4463.1,4463.0,0.236]
[1756410376739,3.91829,4463.1,4463.0,0.236]
[1756410377637,3.515,4463.1,4463.0,0.6864]
[1756410377937,3.2078,4463.1,4463.0,0.9666]
[1756410379542,3.2078,4463.7,4463.5,0.40325]
[1756410379738,3.2078,4463.7,4463.6,0.7306]
[1756410381636,1.00785,4464.8,4463.6,0.7306]
[1756410381637,3.2078,4464.2,4464.1,1.1338]
[1756410381838,0.3072,4464.5,4464.3,0.4504]
[1756410382139,0.6127,4464.6,4464.5,0.4504]
[1756410382335,0.40316,4464.5,4463.5,1.00812]
[1756410382532,3.2078,4464.2,4463.9,0.40321]
[1756410382734,0.3072,4464.1,4463.5,0.4504]
[1756410382929,1.01594,4463.7,4463.6,0.236]
[1756410383134,0.6127,4463.7,4463.6,0.236]
[1756410383340,0.6127,4463.7,4463.6,0.5162]
[1756410383537,0.6127,4463.7,4463.6,0.9666]
[1756410384040,3.515,4464.2,4464.0,0.40321]
[1756410384240,0.3072,4464.4,4464.1,0.2802]
[1756410384534,0.3072,4464.4,4464.0,0.40321]
[1756410384535,0.3055,4464.7,4464.6,1.13375]
[1756410384940,0.3072,4465.0,4464.9,0.40313]
[1756410385241,0.3072,4465.0,4464.9,0.85353]
[1756410385428,0.00146121,4465.1,4464.9,1.13373]
[1756410385633,0.00146121,4465.1,4465.0,0.4504]
[1756410386029,0.00146121,4465.1,4465.0,0.7306]
[1756410388435,0.00146121,4465.1,4464.8,0.63913]
[1756410388638,0.3055,4464.9,4464.8,1.08953]
[1756410388831,0.3055,4464.9,4464.8,1.13373]
[1756410389036,0.00146121,4465.1,4465.0,0.4504]
[1756410389235,0.30696121,4465.1,4465.0,0.7306]
[1756410389435,0.00146121,4465.1,4465.0,0.7306]
[1756410391138,0.00146121,4465.1,4465.0,4.7306]
[1756410391538,0.00146121,4465.1,4465.0,4.9666]
[1756410392640,0.00146121,4465.1,4465.0,0.9666]
[1756410393341,0.61416121,4465.1,4465.0,0.9666]
[1756410393540,0.61416121,4465.1,4465.0,0.236]
[1756410394342,0.61416121,4465.1,4465.0,0.9666]
[1756410395046,0.00146121,4465.1,4465.0,0.9666]
[1756410396447,0.00146121,4465.1,4465.0,0.7306]
[1756410396744,0.71007121,4465.1,4465.0,0.236]
[1756410396943,0.40314,4464.8,4464.6,32.264]
[1756410397240,3.2078,4464.7,4463.8,1.07562]
[1756410397445,0.2901,4464.0,4463.9,1.12722]
[1756410397635,3.2078,4464.2,4463.9,1.12722]
[1756410397842,0.69828,4464.3,4463.9,0.40322]
[1756410398244,0.40318,4464.3,4464.1,0.4364]
[1756410398541,0.2951,4464.2,4464.0,0.4364]
[1756410398747,0.69827,4464.5,4464.1,0.4032]
[1756410399045,0.69827,4464.5,4464.2,0.4364]
[1756410399238,0.69827,4464.5,4464.1,0.4032]
[1756410399439,0.2951,4464.9,4464.7,0.83954]
[1756410399639,0.2951,4464.9,4464.6,0.2876]
[1756410399640,0.00146121,4465.1,4465.0,0.2876]
[1756410399846,0.00146121,4465.1,4465.0,0.724]
[1756410401443,3.2078,4465.7,4465.6,0.69066]
[1756410401742,3.2078,4465.7,4465.6,1.36306]
[1756410402942,0.40302,4466.1,4465.7,0.40305]
[1756410403348,0.40302,4466.1,4465.8,0.4364]
[1756410403742,3.2078,4466.3,4465.8,0.4364]
[1756410403743,3.61081,4466.3,4466.1,0.4364]
[1756410403944,3.2078,4466.3,4466.2,0.724]
[1756410405342,3.2078,4466.8,4466.7,0.40296]
[1756410405544,3.2078,4466.8,4466.7,1.12696]
[1756410406147,3.2078,4467.9,4467.2,0.724]
[1756410406455,3.2078,4468.4,4468.3,0.2876]
[1756410406644,3.4979,4468.4,4468.1,0.4364]
[1756410406952,0.2901,4468.2,4467.5,0.4364]
[1756410407248,0.2901,4468.2,4467.4,3.2078]
[1756410407249,0.5852,4468.2,4468.0,0.40284]
[1756410407444,0.2951,4468.1,4467.9,0.4364]
[1756410407649,0.5852,4468.1,4468.0,0.236]
[1756410408048,0.5852,4468.1,4468.0,0.96]
[1756410408049,0.2901,4468.1,4468.0,0.96]
[1756410408652,3.2078,4468.4,4468.3,0.724]
[1756410409152,3.793,4468.4,4468.3,0.96]
[1756410409344,3.793,4468.4,4468.3,0.236]
[1756410409555,0.5852,4468.2,4467.6,0.40288]